fUSD/lending_fUSD_20260214
["ID","MTS","AMOUNT","RATE_DAILY","PERIOD"]
[405369082,1771093909583,-500.0,0.00039178,9]
[405369083,1771093909595,-500.0,0.00039178,9]
[405369084,1771093909606,-500.0,0.00039178,2]
[405369085,1771093909617,-500.0,0.00039178,9]
[405369086,1771093909628,-500.0,0.00039178,9]
[405369087,1771093909638,-500.0,0.00039178,9]
[405369088,1771093909649,-500.0,0.00039178,9]
[405369089,1771093909659,-500.0,0.00039178,9]
[405369090,1771093909670,-500.0,0.00039178,9]
[405369091,1771093909679,-500.0,0.00039178,9]
[405369092,1771093909689,-500.0,0.00039178,9]
[405369093,1771093909699,-500.0,0.00039178,9]
[405369094,1771093909708,-500.0,0.00039178,9]
[405369095,1771093909718,-5100.22,0.00039178,9]
[405369096,1771093909728,-500.0,0.00039178,9]
[405369097,1771093909738,-500.0,0.00039178,9]
[405369098,1771093909748,-500.0,0.00039178,9]
[405369099,1771093909757,-506.70704193,0.00039178,9]
[405369100,1771093909767,-500.0,0.00039178,9]
[405369101,1771093909777,-10810.91,0.00039178,9]
[405369102,1771093909787,-500.0,0.00039178,9]
[405369103,1771093909796,-4011.27,0.00039178,9]
[405369104,1771093909806,-4569.78,0.00039178,9]
[405369105,1771093909817,-500.0,0.00039178,9]
[405369106,1771093909827,-500.0,0.00039178,9]
[405369107,1771093909837,-500.0,0.00039178,9]
[405369108,1771093909847,-500.0,0.00039178,9]
[405369109,1771093909857,-3982.43,0.00039178,9]
[405369110,1771093909867,-500.0,0.00039178,9]
[405369111,1771093909877,-500.0,0.00039178,9]
[405369112,1771093909887,-500.0,0.00039178,9]
[405369113,1771093909897,-500.0,0.00039178,9]
[405369114,1771093909907,-945.81,0.00039178,9]
[405369115,1771093909917,-500.0,0.00039178,9]
[405369116,1771093909927,-300.0,0.00039178,2]
[405369117,1771093909937,-5326.62,0.00039178,9]
[405369118,1771093909946,-1374.78,0.00039178,9]
[405369119,1771093909956,-500.0,0.00039178,9]
[405369120,1771093909966,-4059.63,0.00039178,9]
[405369121,1771093909976,-500.0,0.00039178,9]
[405369122,1771093909988,-3578.35,0.00039178,9]
[405369123,1771093909997,-500.0,0.00039178,5]
[405369124,1771093910007,-509.78932442,0.00039178,9]
[405369125,1771093910017,-500.0,0.00039178,9]
[405369126,1771093910026,-500.0,0.00039178,9]
[405369127,1771093910036,-500.0,0.00039178,9]
[405369128,1771093910045,-5981.56,0.00039178,9]
[405369129,1771093910055,-500.0,0.00039178,9]
[405369130,1771093910065,-500.0,0.00039178,9]
[405369131,1771093910076,-500.0,0.00039178,9]
[405369132,1771093910086,-523.40866116,0.00039178,9]
[405369133,1771093910098,-610.33235959,0.00039178,9]
[405369134,1771093910109,-500.0,0.00039178,9]
[405369135,1771093910120,-5562.93,0.00039178,9]
[405369136,1771093910130,-500.0,0.00039178,9]
[405369137,1771093910140,-500.0,0.00039178,9]
[405369138,1771093910150,-500.0,0.00039178,9]
[405369139,1771093910162,-500.0,0.00039178,9]
[405369140,1771093910173,-500.0,0.00039178,9]
[405369141,1771093910185,-3804.91,0.00039178,9]
[405369142,1771093910196,-516.22718615,0.00039178,9]
[405369143,1771093910207,-500.0,0.00039178,9]
[405369144,1771093910219,-3292.7,0.00039178,9]
[405369145,1771093910230,-10011.46,0.00039178,9]
[405369146,1771093910242,-500.0,0.00039178,9]
[405369147,1771093910252,-500.0,0.00039178,9]
[405369148,1771093910262,-500.0,0.00039178,9]
[405369149,1771093910275,-500.0,0.00039178,9]
[405369150,1771093910286,-500.0,0.00039178,9]
[405369151,1771093910295,-150.0,0.00039178,9]
[405369152,1771093910307,-500.0,0.00039178,9]
[405369153,1771093910319,-5698.9,0.00039178,9]
[405369154,1771093910329,-500.0,0.00039178,9]
[405369155,1771093910340,-618.1,0.00039178,9]
[405369156,1771093910350,-500.0,0.00039178,9]
[405369157,1771093910360,-500.0,0.00039178,9]
[405369158,1771093910371,-500.0,0.00039178,9]
[405369159,1771093910383,-500.0,0.00039178,9]
[405369160,1771093910394,-521.40093363,0.00039178,9]
[405369161,1771093910408,-500.0,0.00039178,9]
[405369162,1771093910418,-500.0,0.00039178,9]
[405369163,1771093910429,-500.0,0.00039178,9]
[405369164,1771093910439,-585.26599864,0.00039178,9]
[405369165,1771093910450,-500.0,0.00039178,9]
[405369166,1771093910460,-500.0,0.00039178,9]
[405369167,1771093910470,-500.0,0.00039178,9]
[405369168,1771093910482,-500.0,0.00039178,9]
[405369169,1771093910492,-500.0,0.00039178,9]
[405369170,1771093910502,-500.0,0.00039178,9]
[405369171,1771093910512,-500.0,0.00039178,9]
[405369172,1771093910523,-3635.6,0.00039178,9]
[405369173,1771093910533,-514.16151879,0.00039178,9]
[405369174,1771093910544,-4860.79,0.00039178,9]
[405369175,1771093910554,-500.0,0.00039178,9]
[405369176,1771093910564,-585.84,0.00039178,9]
[405369177,1771093910575,-512.47783137,0.00039178,9]
[405369178,1771093910585,-500.0,0.00039178,9]
[405369179,1771093910596,-500.0,0.00039178,9]
[405369180,1771093910607,-5822.07,0.00039178,9]
[405369181,1771093910617,-500.0,0.00039178,9]
[405369182,1771093910628,-500.0,0.00039178,9]
[405369183,1771093910640,-8145.86,0.00039178,9]
[405369184,1771093910649,-3702.56,0.00039178,9]
[405369185,1771093910662,-239.64098719,0.00039178,9]
[405369186,1771093910673,-500.0,0.00039178,9]
[405369187,1771093910684,-1020.67,0.00039178,9]
[405369188,1771093910694,-591.53821534,0.00039178,9]
[405369189,1771093910705,-500.0,0.00039178,9]
[405369190,1771093910716,-500.0,0.00039178,9]
[405369191,1771093910727,-500.0,0.00039178,9]
[405369192,1771093910738,-500.0,0.00039178,9]
[405369193,1771093910747,-500.0,0.00039178,9]
[405369194,1771093910756,-579.77,0.00039178,9]
[405369195,1771093910766,-2809.91,0.00039178,15]
[405369196,1771093910776,-500.0,0.00039178,9]
[405369197,1771093910786,-500.0,0.00039178,9]
[405369198,1771093910798,-500.0,0.00039178,9]
[405369199,1771093910809,-500.0,0.00039178,9]
[405369200,1771093910819,-692.65,0.00039178,9]
[405369201,1771093910829,-835.77,0.00039178,9]
[405369202,1771093910839,-500.0,0.00039178,9]
[405369203,1771093910849,-500.0,0.00039178,9]
[405369204,1771093910859,-500.0,0.00039178,9]
[405369205,1771093910875,-500.0,0.00039178,9]
[405369206,1771093910892,-500.0,0.00039178,9]
[405369207,1771093910904,-500.0,0.00039178,9]
[405369208,1771093910914,-4321.01,0.00039178,9]
[405369209,1771093910924,-500.0,0.00039178,9]
[405369210,1771093910934,-500.0,0.00039178,9]
[405369211,1771093910950,-500.0,0.00039178,9]
[405369212,1771093910959,-500.0,0.00039178,9]
[405369213,1771093910969,-500.0,0.00039178,9]
[405369214,1771093910978,-500.0,0.00039178,9]
[405369215,1771093910988,-536.86300257,0.00039178,9]
[405369216,1771093910997,-5541.84,0.00039178,9]
[405369217,1771093911007,-11996.33,0.00039178,9]
[405369218,1771093911018,-592.68055735,0.00039178,9]
[405369219,1771093911028,-500.0,0.00039178,9]
[405369220,1771093911038,-500.0,0.00039178,9]
[405369221,1771093911049,-500.0,0.00039178,9]
[405369222,1771093911060,-500.0,0.00039178,9]
[405369223,1771093911070,-4068.1,0.00039178,9]
[405369224,1771093911083,-500.0,0.00039178,9]
[405369225,1771093911094,-500.0,0.00039178,9]
[405369226,1771093911104,-500.0,0.00039178,9]
[405369227,1771093911114,-3498.65,0.00039178,9]
[405369228,1771093911124,-500.0,0.00039178,9]
[405369229,1771093911133,-500.0,0.00039178,9]
[405369230,1771093911143,-500.0,0.00039178,9]
[405369231,1771093911152,-4772.89,0.00039178,9]
[405369232,1771093911162,-3599.74,0.00039178,9]
[405369233,1771093911172,-500.0,0.00039178,9]
[405369234,1771093911181,-3590.36,0.00039178,9]
[405369235,1771093911191,-500.0,0.00039178,9]
[405369236,1771093911200,-500.0,0.00039178,9]
[405369237,1771093911210,-500.0,0.00039178,9]
[405369238,1771093911220,-500.0,0.00039178,9]
[405369239,1771093911230,-555.53,0.00039178,9]
[405369240,1771093911241,-500.0,0.00039178,9]
[405369241,1771093911254,-500.0,0.00039178,9]
[405369242,1771093911268,-500.0,0.00039178,9]
[405369243,1771093911279,-512.27186434,0.00039178,9]
[405369244,1771093911289,-500.0,0.00039178,9]
[405369245,1771093911300,-500.0,0.00039178,9]
[405369246,1771093911310,-500.0,0.00039178,9]
[405369247,1771093911322,-500.0,0.00039178,9]
[405369248,1771093911334,-528.16861292,0.00039178,9]
[405369249,1771093911344,-500.0,0.00039178,9]
[405369250,1771093911354,-3986.91,0.00039178,9]
[405369251,1771093911364,-602.84,0.00039178,9]
[405369252,1771093911375,-500.0,0.00039178,9]
[405369253,1771093911386,-500.0,0.00039178,9]
[405369254,1771093911395,-4500.2,0.00039178,9]
[405369255,1771093911411,-500.0,0.00039178,9]
[405369256,1771093911423,-500.0,0.00039178,9]
[405369257,1771093911434,-500.0,0.00039178,9]
[405369258,1771093911444,-500.0,0.00039178,9]
[405369259,1771093911455,-500.0,0.00039178,9]
[405369260,1771093911467,-500.0,0.00039178,9]
[405369261,1771093911480,-500.0,0.00039178,9]
[405369262,1771093911490,-500.0,0.00039178,9]
[405369263,1771093911500,-500.0,0.00039178,9]
[405369264,1771093911512,-17167.11,0.00039178,15]
[405369265,1771093911525,-500.0,0.00039178,9]
[405369266,1771093911536,-500.0,0.00039178,9]
[405369267,1771093911545,-500.0,0.00039178,9]
[405369268,1771093911555,-524.01014558,0.00039178,9]
[405369269,1771093911567,-500.0,0.00039178,9]
[405369270,1771093911576,-500.0,0.00039178,9]
[405369271,1771093911586,-500.0,0.00039178,9]
[405369272,1771093911596,-531.36141519,0.00039178,9]
[405369273,1771093911607,-500.0,0.00039178,9]
[405369274,1771093911619,-500.0,0.00039178,9]
[405369275,1771093911631,-500.0,0.00039178,9]
[405369276,1771093911642,-500.0,0.00039178,9]
[405369277,1771093911654,-6987.05,0.00039178,9]
[405369278,1771093911663,-500.0,0.00039178,9]
[405369279,1771093911674,-792.61,0.00039178,9]
[405369280,1771093911684,-500.0,0.00039178,9]
[405369281,1771093911696,-3809.76,0.00039178,9]
[405369282,1771093911708,-500.0,0.00039178,9]
[405369283,1771093911719,-500.0,0.00039178,9]
[405369284,1771093911728,-500.0,0.00039178,9]
[405369285,1771093911740,-500.0,0.00039178,9]
[405369286,1771093911750,-500.0,0.00039178,9]
[405369287,1771093911760,-500.0,0.00039178,9]
[405369288,1771093911771,-1872.91,0.00039178,9]
[405369289,1771093911780,-500.0,0.00039178,9]
[405369290,1771093911791,-500.0,0.00039178,9]
[405369291,1771093911801,-500.0,0.00039178,9]
[405369292,1771093911812,-500.0,0.00039178,9]
[405369293,1771093911821,-751.97,0.00039178,9]
[405369294,1771093911831,-604.88943486,0.00039178,9]
[405369295,1771093911841,-500.0,0.00039178,9]
[405369296,1771093911851,-4301.09,0.00039178,9]
[405369297,1771093911861,-500.0,0.00039178,9]
[405369298,1771093911871,-500.0,0.00039178,9]
[405369299,1771093911880,-500.0,0.00039178,9]
[405369300,1771093911890,-500.0,0.00039178,9]
[405369301,1771093911899,-500.0,0.00039178,9]
[405369302,1771093911910,-500.0,0.00039178,9]
[405369303,1771093911921,-500.0,0.00039178,9]
[405369304,1771093911932,-500.0,0.00039178,9]
[405369305,1771093911942,-500.0,0.00039178,9]
[405369306,1771093911953,-500.0,0.00039178,9]
[405369307,1771093911963,-500.0,0.00039178,9]
[405369308,1771093911974,-585.98541345,0.00039178,9]
[405369309,1771093911983,-500.0,0.00039178,9]
[405369310,1771093911994,-519.96456414,0.00039178,9]
[405369311,1771093912004,-500.0,0.00039178,9]
[405369312,1771093912015,-500.0,0.00039178,9]
[405369313,1771093912025,-49453.89,0.00039178,9]
[405369314,1771093912035,-500.0,0.00039178,9]
[405369315,1771093912045,-500.0,0.00039178,9]
[405369316,1771093912055,-500.0,0.00039178,9]
[405369317,1771093912064,-500.0,0.00039178,9]
[405369318,1771093912073,-500.0,0.00039178,9]
[405369319,1771093912083,-514.79,0.00039178,9]
[405369320,1771093912092,-500.0,0.00039178,9]
[405369321,1771093912102,-522.72,0.00039178,9]
[405369322,1771093912112,-500.0,0.00039178,9]
[405369323,1771093912121,-500.0,0.00039178,9]
[405369324,1771093912131,-500.0,0.00039178,9]
[405369325,1771093912141,-513.12516032,0.00039178,9]
[405369326,1771093912151,-508.16604013,0.00039178,9]
[405369327,1771093912160,-3592.54,0.00039178,9]
[405369328,1771093912169,-500.0,0.00039178,9]
[405369329,1771093912179,-500.0,0.00039178,9]
[405369330,1771093912359,-6816.69,0.00039178,9]
[405369331,1771093912369,-6877.26,0.00039178,9]
[405369332,1771093912379,-500.0,0.00039178,9]
[405369333,1771093912388,-500.0,0.00039178,9]
[405369334,1771093912398,-500.0,0.00039178,9]
[405369335,1771093912410,-3548.79,0.00039178,9]
[405369336,1771093912423,-533.7972328,0.00039178,9]
[405369337,1771093912432,-500.0,0.00039178,9]
[405369338,1771093912443,-1000.0,0.00039178,9]
[405369339,1771093912452,-506.35280703,0.00039178,9]
[405369340,1771093912462,-500.0,0.00039178,9]
[405369341,1771093912473,-643.83,0.00039178,9]
[405369342,1771093912482,-5429.53,0.00039178,9]
[405369343,1771093912492,-500.0,0.00039178,9]
[405369344,1771093912501,-500.0,0.00039178,9]
[405369345,1771093912511,-627.22121703,0.00039178,9]
[405369346,1771093912520,-500.0,0.00039178,9]
[405369347,1771093912529,-500.0,0.00039178,9]
[405369348,1771093912538,-500.0,0.00039178,9]
[405369349,1771093912548,-500.0,0.00039178,9]
[405369350,1771093912557,-500.0,0.00039178,9]
[405369351,1771093912567,-503.99038575,0.00039178,9]
[405369352,1771093912576,-570.74112509,0.00039178,9]
[405369353,1771093912586,-500.0,0.00039178,9]
[405369354,1771093912596,-500.0,0.00039178,9]
[405369355,1771093912605,-4648.43,0.00039178,9]
[405369356,1771093912616,-500.0,0.00039178,9]
[405369357,1771093912626,-500.0,0.00039178,9]
[405369358,1771093912637,-500.0,0.00039178,9]
[405369359,1771093912646,-685.71,0.00039178,9]
[405369360,1771093912657,-500.0,0.00039178,9]
[405369361,1771093912666,-500.0,0.00039178,9]
[405369362,1771093912677,-500.0,0.00039178,9]
[405369363,1771093912687,-500.0,0.00039178,9]
[405369364,1771093912697,-1668.59,0.00039178,9]
[405369365,1771093912706,-500.0,0.00039178,9]
[405369366,1771093912717,-500.0,0.00039178,9]
[405369367,1771093912727,-622.0,0.00039178,9]
[405369368,1771093912737,-4113.81,0.00039178,9]
[405369369,1771093912747,-500.0,0.00039178,9]
[405369370,1771093912758,-381.34708117,0.00039178,9]
[405369371,1771093912768,-500.0,0.00039178,120]
[405369372,1771093912780,-735.58,0.00039178,9]
[405369373,1771093912789,-500.0,0.00039178,9]
[405369374,1771093912800,-510.23727434,0.00039178,9]
[405369375,1771093912811,-500.0,0.00039178,9]
[405369376,1771093912821,-500.0,0.00039178,9]
[405369377,1771093912831,-500.0,0.00039178,9]
[405369378,1771093912841,-1564.16,0.00039178,9]
[405369379,1771093912851,-500.0,0.00039178,9]
[405369380,1771093912860,-395.3325291,0.00039178,9]
[405369381,1771093912870,-500.0,0.00039178,9]
[405369382,1771093912880,-678.21,0.00039178,9]
[405369383,1771093912890,-500.0,0.00039178,9]
[405369384,1771093912899,-500.0,0.00039178,9]
[405369385,1771093912908,-2515.75,0.00039178,9]
[405369386,1771093912917,-500.0,0.00039178,9]
[405369387,1771093912926,-500.0,0.00039178,9]
[405369388,1771093912935,-4400.86,0.00039178,9]
[405369389,1771093912944,-500.0,0.00039178,9]
[405369390,1771093912954,-620.48861881,0.00039178,9]
[405369391,1771093912963,-500.0,0.00039178,9]
[405369392,1771093912973,-261.61979024,0.00039178,3]
[405369393,1771093912982,-500.0,0.00039178,9]
[405369394,1771093912992,-500.0,0.00039178,9]
[405369395,1771093913002,-500.0,0.00039178,9]
[405369396,1771093913011,-500.0,0.00039178,9]
[405369397,1771093913021,-579.75,0.00039178,9]
[405369398,1771093913031,-798.86,0.00039178,9]
[405369399,1771093913040,-500.0,0.00039178,9]
[405369400,1771093913050,-500.0,0.00039178,9]
[405369401,1771093913060,-500.0,0.00039178,9]
[405369402,1771093913070,-500.0,0.00039178,9]
[405369403,1771093913081,-1141.19,0.00039178,9]
[405369404,1771093913091,-500.0,0.00039178,9]
[405369405,1771093913101,-500.0,0.00039178,9]
[405369406,1771093913110,-500.0,0.00039178,9]
[405369407,1771093913120,-500.0,0.00039178,9]
[405369408,1771093913129,-995.04,0.00039178,9]
[405369409,1771093913139,-500.0,0.00039178,9]
[405369410,1771093913149,-9716.73,0.00039178,9]
[405369411,1771093913158,-500.0,0.00039178,9]
[405369412,1771093913167,-403.45130746,0.00039178,9]
[405369413,1771093913177,-500.0,0.00039178,9]
[405369414,1771093913186,-517.54867004,0.00039178,9]
[405369415,1771093913196,-500.0,0.00039178,9]
[405369416,1771093913206,-522.43751708,0.00039178,9]
[405369417,1771093913216,-586.54983748,0.00039178,9]
[405369418,1771093913226,-500.0,0.00039178,9]
[405369419,1771093913236,-500.0,0.00039178,9]
[405369420,1771093913246,-500.0,0.00039178,9]
[405369421,1771093913255,-500.0,0.00039178,9]
[405369422,1771093913265,-500.0,0.00039178,9]
[405369423,1771093913275,-500.0,0.00039178,9]
[405369424,1771093913284,-500.0,0.00039178,9]
[405369425,1771093913294,-500.0,0.00039178,9]
[405369426,1771093913303,-500.0,0.00039178,9]
[405369427,1771093913313,-4640.07,0.00039178,9]
[405369428,1771093913323,-500.0,0.00039178,9]
[405369429,1771093913333,-522.6539957,0.00039178,9]
[405369430,1771093913343,-1058.89,0.00039178,9]
[405369431,1771093913353,-521.25799614,0.00039178,9]
[405369432,1771093913363,-4083.12,0.00039178,9]
[405369433,1771093913374,-500.0,0.00039178,9]
[405369434,1771093913384,-500.0,0.00039178,9]
[405369435,1771093913394,-500.0,0.00039178,9]
[405369436,1771093913407,-500.0,0.00039178,9]
[405369437,1771093913417,-500.0,0.00039178,9]
[405369438,1771093913427,-500.0,0.00039178,9]
[405369439,1771093913436,-500.0,0.00039178,9]
[405369440,1771093913446,-453.94235871,0.00039178,9]
[405369441,1771093913456,-500.0,0.00039178,9]
[405369442,1771093913465,-103732.07428293,0.00039178,2]
[405369443,1771093913476,-150.0,0.00039188,7]
[405369444,1771093913486,-1327.05158,0.000392,120]
[405369445,1771093913495,-1915.67,0.000392,14]
[405369446,1771093913505,-558.14,0.00039348,30]
[405369447,1771093913515,-413.35366988,0.00039352,2]
[405369448,1771093913525,-253.07725944,0.00039352,2]
[405369449,1771093913535,-4196.9191529,0.00039352,2]
[405369450,1771093913545,-297.68,0.00039395,2]
[405369451,1771093913555,-1327.05158,0.000394,120]
[405369452,1771093913565,-649209.13213287,0.000394,7]
[405369453,1771093913576,-1064551.55846705,0.000394,7]
[405369454,1771093913585,-150.0,0.00039401,2]
[405369455,1771093913595,-150.0,0.00039401,2]
[405369456,1771093913604,-197.84994154,0.00039401,2]
[405369457,1771093913613,-1000.0,0.00039434,2]
[405369458,1771093913623,-150.0,0.00039444,7]
[405369459,1771093913633,-150.0,0.00039444,7]
[405369460,1771093913643,-150.0,0.00039444,7]
[405369461,1771093913653,-150.0,0.00039444,7]
[405369462,1771093913662,-150.0,0.00039444,7]
[405369463,1771093913672,-150.0,0.00039444,7]
[405369464,1771093913681,-7334.46302856,0.00039448,2]
[405369465,1771093913691,-151.082823,0.00039452,9]
[405369466,1771093913700,-7145.10846176,0.00039452,9]
[405369467,1771093913710,-500.0,0.00039452,9]
[405369468,1771093913719,-500.0,0.00039452,9]
[405369469,1771093913729,-500.0,0.00039452,2]
[405369470,1771093913738,-176.73496382,0.00039452,9]
[405369471,1771093913747,-500.0,0.00039452,9]
[405369472,1771093913757,-500.0,0.00039452,9]
[405369473,1771093913767,-564.49778737,0.00039452,9]
[405369474,1771093913776,-500.0,0.00039452,9]
[405369475,1771093913786,-571.19185829,0.00039452,9]
[405369476,1771093913796,-500.0,0.00039452,9]
[405369477,1771093913807,-500.0,0.00039452,7]
[405369478,1771093913817,-532.34257584,0.00039452,9]
[405369479,1771093913827,-517.33781007,0.00039452,9]
[405369480,1771093913837,-500.0,0.00039452,9]
[405369481,1771093913847,-500.0,0.00039452,9]
[405369482,1771093913856,-500.0,0.00039452,9]
[405369483,1771093913866,-515.40331323,0.00039452,9]
[405369484,1771093913876,-500.0,0.00039452,9]
[405369485,1771093913885,-500.0,0.00039452,9]
[405369486,1771093913895,-500.0,0.00039452,9]
[405369487,1771093913905,-500.0,0.00039452,9]
[405369488,1771093913914,-500.0,0.00039452,9]
[405369489,1771093913923,-500.0,0.00039452,9]
[405369490,1771093913932,-500.0,0.00039452,9]
[405369491,1771093913942,-511.00177652,0.00039452,9]
[405369492,1771093913952,-500.0,0.00039452,9]
[405369493,1771093913961,-513.18393921,0.00039452,9]
[405369494,1771093913971,-512.47406664,0.00039452,9]
[405369495,1771093913981,-530.39302824,0.00039452,9]
[405369496,1771093913991,-500.0,0.00039452,9]
[405369497,1771093914001,-500.0,0.00039452,9]
[405369498,1771093914010,-500.0,0.00039452,9]
[405369499,1771093914020,-555.74354504,0.00039452,9]
[405369500,1771093914029,-500.0,0.00039452,9]
[405369501,1771093914039,-510.18072141,0.00039452,9]
[405369502,1771093914058,-500.0,0.00039452,9]
[405369503,1771093914069,-500.0,0.00039452,9]
[405369504,1771093914078,-500.0,0.00039452,9]
[405369505,1771093914088,-500.0,0.00039452,9]
[405369506,1771093914098,-500.0,0.00039452,9]
[405369507,1771093914108,-540.78101274,0.00039452,9]
[405369508,1771093914118,-266.84771769,0.00039452,9]
[405369509,1771093914127,-203.79586387,0.00039452,9]
[405369510,1771093914137,-500.0,0.00039452,9]
[405369511,1771093914147,-537.08354965,0.00039452,9]
[405369512,1771093914157,-500.0,0.00039452,9]
[405369513,1771093914167,-500.0,0.00039452,9]
[405369514,1771093914176,-2236.17,0.00039452,9]
[405369515,1771093914185,-408.5143905,0.00039452,9]
[405369516,1771093914195,-550.12559193,0.00039452,9]
[405369517,1771093914205,-500.0,0.00039452,9]
[405369518,1771093914214,-500.0,0.00039452,9]
[405369519,1771093914223,-500.0,0.00039452,9]
[405369520,1771093914233,-513.42816278,0.00039452,9]
[405369521,1771093914242,-500.0,0.00039452,9]
[405369522,1771093914251,-500.0,0.00039452,9]
[405369523,1771093914260,-500.0,0.00039452,9]
[405369524,1771093914270,-531.8679875,0.00039452,9]
[405369525,1771093914280,-539.72023217,0.00039452,9]
[405369526,1771093914290,-500.0,0.00039452,9]
[405369527,1771093914299,-338.19601513,0.00039452,9]
[405369528,1771093914308,-359.03372744,0.00039452,9]
[405369529,1771093914318,-515.20903687,0.00039452,9]
[405369530,1771093914327,-500.0,0.00039452,9]
[405369531,1771093914336,-500.0,0.00039452,9]
[405369532,1771093914345,-500.0,0.00039452,9]
[405369533,1771093914355,-500.0,0.00039452,9]
[405369534,1771093914364,-500.0,0.00039452,9]
[405369535,1771093914373,-566.85819495,0.00039452,9]
[405369536,1771093914383,-500.0,0.00039452,9]
[405369537,1771093914393,-500.0,0.00039452,9]
[405369538,1771093914406,-507.3460578,0.00039452,9]
[405369539,1771093914419,-500.0,0.00039452,9]
[405369540,1771093914430,-517.06535731,0.00039452,9]
[405369541,1771093914440,-1499.27,0.00039452,9]
[405369542,1771093914451,-500.0,0.00039452,9]
[405369543,1771093914462,-500.0,0.00039452,9]
[405369544,1771093914473,-462.1896808,0.00039452,9]
[405369545,1771093914485,-508.4725815,0.00039452,9]
[405369546,1771093914494,-500.0,0.00039452,9]
[405369547,1771093914506,-500.0,0.00039452,9]
[405369548,1771093914518,-500.0,0.00039452,9]
[405369549,1771093914528,-505.58404466,0.00039452,9]
[405369550,1771093914538,-500.0,0.00039452,9]
[405369551,1771093914547,-500.0,0.00039452,9]
[405369552,1771093914557,-500.0,0.00039452,9]
[405369553,1771093914566,-500.0,0.00039452,9]
[405369554,1771093914575,-500.0,0.00039452,9]
[405369555,1771093914584,-500.0,0.00039452,9]
[405369556,1771093914595,-570.78111772,0.00039452,9]
[405369557,1771093914604,-530.55,0.00039452,9]
[405369558,1771093914613,-500.5811085,0.00039452,9]
[405369559,1771093914622,-679.39,0.00039452,9]
[405369560,1771093914632,-500.0,0.00039452,9]
[405369561,1771093914642,-500.0,0.00039452,30]
[405369562,1771093914653,-500.0,0.00039452,9]
[405369563,1771093914664,-500.0,0.00039452,9]
[405369564,1771093914675,-551.66838083,0.00039452,9]
[405369565,1771093914685,-500.24857249,0.00039452,9]
[405369566,1771093914697,-500.0,0.00039452,9]
[405369567,1771093914706,-500.0,0.00039452,9]
[405369568,1771093914718,-500.0,0.00039452,9]
[405369569,1771093914729,-500.0,0.00039452,9]
[405369570,1771093914738,-517.28759602,0.00039452,9]
[405369571,1771093914749,-500.0,0.00039452,9]
[405369572,1771093914760,-500.0,0.00039452,9]
[405369573,1771093914770,-556.43817124,0.00039452,9]
[405369574,1771093914784,-500.0,0.00039452,9]
[405369575,1771093914794,-518.07142194,0.00039452,9]
[405369576,1771093914804,-514.21056572,0.00039452,9]
[405369577,1771093914816,-507.11461507,0.00039452,9]
[405369578,1771093914827,-520.69427759,0.00039452,9]
[405369579,1771093914837,-425.12,0.00039452,2]
[405369580,1771093914847,-500.0,0.00039452,9]
[405369581,1771093914857,-520.49742449,0.00039452,9]